Cogmind - Beta 15 @@@ ROGUE MODE // 2025.05.17 @ 10:56:56 Player: Minty Result: Destroyed by D-53 Grenadier with Mini Grenade Launcher Performance ------------- Evolutions (0) 0 Regions Visited (2) 400 Robots Destroyed (3) 15 Value Destroyed (85) 85 Prototype IDs (1) 20 Alien Tech Used (0) 0 Bonus (0) 0 TOTAL SCORE: 520 Bonus ------- None Cogmind --------- Core Integrity 0/250 Matter 264/300 Energy 100/100 System Corruption 3% Temperature Cool (0) Movement Core (50) Location -10/Mines Parts ------- > --- POWER (1) -------- (None) > --- PROPULSION (2) --- Light Treads Light Treads > --- UTILITY (2) ------ (None) > --- WEAPON (2) ------- (None) > --- INVENTORY (5) ---- Light Ion Engine Aluminum Leg Aluminum Leg Small Storage Unit Experimental Sensor Array Peak State ------------ > --- POWER ------------ Ion Engine > --- PROPULSION ------- Aluminum Leg Aluminum Leg > --- UTILITY ---------- Small Storage Unit Experimental Sensor Array > --- WEAPON ----------- Assault Rifle Light Assault Rifle > --- INVENTORY -------- Light Ion Engine Light Treads Light Treads Wheel Compact Wheel Small Laser Light Cannon [Rating: 15] Favorites ----------- Power Ion Engine Engine Ion Engine Propulsion Aluminum Leg Treads Light Treads Leg Aluminum Leg Wheel Wheel Utility Small Storage Unit Device Experimental Sensor Array Storage Small Storage Unit Protection Light Armor Plating Weapon Assault Rifle Ballistic Gun Assault Rifle Ballistic Cannon Light Cannon Build | -11 -10 -10 ------- Run | Yrd Mat Min Slots Evolved . | . . . Power . | . . . Propulsion . | . . . Utility . | . . . Weapon . | . . . Parts Attached 7 | . 1 6 Power . | . . . Engine . | . . . Core . | . . . Reactor . | . . . Propulsion 4 | . . 4 Treads 2 | . . 2 Leg . | . . . Wheel 2 | . . 2 Hover . | . . . Flight . | . . . Utility 2 | . 1 1 Device 1 | . . 1 Storage . | . . . Processor . | . . . Hackware . | . . . Protection 1 | . 1 . Artifact . | . . . Weapon 1 | . . 1 Energy Gun . | . . . Energy Cannon . | . . . Ballistic Gun . | . . . Ballistic Cannon 1 | . . 1 Launcher . | . . . Special Weapon . | . . . Impact Weapon . | . . . Slashing Weapon . | . . . Piercing Weapon . | . . . Special Melee Weapon . | . . . Unidentified Prototypes 1 | . . 1 Parts Lost 6 | . . 6 Power 1 | . . 1 Propulsion 2 | . . 2 Utility 1 | . . 1 Weapon 2 | . . 2 Highest Loss Streak 4 | . . 4 To Critical Strikes . | . . . Average Backups 7 | . 6 7 Power 1 | . 1 1 Propulsion 3 | . 4 3 Utility . | . . . Weapon 1 | . 1 1 Tool/Special . | . . . Unused Backups 10 | . 6 4 Power 3 | . 1 2 Propulsion 2 | . 2 . Utility 1 | . 1 . Weapon 4 | . 2 2 Tool/Special . | . . . Average Slot Usage (%) 88 | . 87 88 Engine 11 | . 14 11 Treads 1 | . . 2 Leg 19 | . 28 17 Wheel 5 | . . 6 Storage 13 | . 14 12 Protection 9 | . 2 11 Ballistic Gun 22 | . 28 20 Ballistic Cannon 3 | . . 3 Peak Build Rating 15 | . 7 15 Average Rating 6 | . 6 7 On Entrance 6 | 6 6 7 Naked Turns . | . . . Heaviest Build 18 | 13 16 18 Greatest Support 26 | 20 20 26 Greatest Overweight (x) 2 | . . 2 Average Overweight (x) . | . . . Largest Inventory Capacity 8 | . 8 8 Average Capacity 7 | . 8 7 Most Carried 8 | . 7 8 Average Carried 7 | . 6 7 Final Capacity 8 | 8 8 5 Final Carried 7 | 6 7 5 Class Distribution -------------------- 100% | Mutant Dominant Class ---------------- Mutant | -10/Materials Mutant | -10/Mines Resources | -11 -10 -10 ----------- Run | Yrd Mat Min Matter Collected 268 | 200 26 42 Remotely . | . . . Salvage Created 127 | . 79 48 Parts 6 | . 2 4 Haulers Intercepted . | . . . Recyclers Shooed . | . . . Parts Field Recycled . | . . . Retrieved Matter . | . . . Parts Self-Destructed . | . . . Prevented . | . . . Kills | -11 -10 -10 ------- Run | Yrd Mat Min Combat Hostiles Destroyed 5 | . 2 3 Guns 2 | . 2 . AOE 3 | . . 3 Classes Destroyed 3 | . 1 2 Tunneler 1 | . . 1 Grunt 2 | . 2 . Assembled 3 | . . 3 Best Kill Streak 3 | . 2 3 Combat Bots Only 3 | . 2 3 Max Kills in Single Turn 3 | . 1 3 Gunslinging . | . . . Exploded 3 | . . 3 Melee . | . . . Uniques/NPCs Destroyed . | . . . Combat | -11 -10 -10 -------- Run | Yrd Mat Min Hostile Shots Fired 64 | . 4 60 Missed 22 | . 2 20 Hits 42 | . 2 40 Melee 10 | . . 10 Projectile 32 | . 2 30 AOE 11 | . . 11 Damage Taken 1026 | . 23 1003 Core 279 | . 11 268 Absorbed by Shields . | . . . Core Remaining (%) 100 | 100 . . Volleys Fired 11 | . 4 7 Largest 2 | . 2 2 Hottest 40 | . 40 40 Shots Fired 18 | . 8 10 Gun 14 | . 8 6 Cannon 4 | . . 4 Launcher . | . . . Special . | . . . Kinetic 18 | . 8 10 Thermal . | . . . Explosive . | . . . Electromagnetic . | . . . Robot Hit Streak 6 | . 5 6 Robot Miss Streak 6 | . 1 6 Penetration Max . | . . . Secondary Targets . | . . . Shots Hit Robots 7 | . 5 2 Core Hits 8 | . 3 5 Critical Kills . | . . . Critical Parts Destroyed . | . . . Critical Strikes . | . . . Melee Attacks . | . . . Impact . | . . . Slashing . | . . . Piercing . | . . . Sneak Attacks . | . . . Combat Hostiles . | . . . Follow-up Attacks . | . . . Damage Inflicted 246 | . 55 191 Guns 68 | . 55 13 Cannons 18 | . . 18 Explosions 160 | . . 160 Melee . | . . . Ramming . | . . . Kinetic 86 | . 55 31 Thermal 160 | . . 160 Explosive . | . . . Electromagnetic . | . . . Impact . | . . . Slashing . | . . . Piercing . | . . . Highest Corruption 3 | . . 3 Average Corruption 3 | . . 3 Corruption Purged . | . . . Corruption Blocked . | . . . Effects 1 | . . 1 Matter Fused 1 | . . 1 Overload Shots . | . . . Overflow Damage . | . . . Projectiles . | . . . Explosions . | . . . Melee . | . . . Knockbacks 2 | . . 2 Impact . | . . . Kinetic 1 | . . 1 Secondary 1 | . . 1 Self-Inflicted Damage 13 | . . 13 Shots 1 | . . 1 Rammed . | . . . Targets Rammed . | . . . Kicked . | . . . Crushed . | . . . Highest Temperature 18 | . 18 10 Average Temperature 7 | . 8 5 Received Heat Transfer 52 | . 12 40 Siege Activations . | . . . Martial Activations . | . . . Shielding Activations . | . . . Robots Disrupted . | . . . Combat Hostiles . | . . . Robots Corrupted . | . . . Combat Hostiles . | . . . Parts Fried . | . . . Impact Corruptions . | . . . Robots Melted . | . . . Combat Hostiles . | . . . Parts Melted . | . . . Heat Transferred 150 | . . 150 Parts Sabotaged . | . . . Parts Stolen . | . . . Parts Stripped . | . . . Power Chain Reactions . | . . . Alert | -11 -10 -10 ------- Run | Yrd Mat Min Maximum Alert Level . | . . . Low Security (%) 100 | . 100 100 Level 1 . | . . . Level 2 . | . . . Level 3 . | . . . Level 4 . | . . . Level 5 . | . . . High Security . | . . . Max Security . | . . . Peak Influence 50 | . 50 15 Initial 15 | . . 15 Average 2 | . 6 1 Influence Increases 85 | . 50 35 Destroy 0b10 Robot/C 40 | . 40 . Destroy 0b10 Robot/NC 5 | . . 5 Destroy Leader 10 | . 10 . Disable Machine 15 | . . 15 Lose Combat Pursuer 15 | . . 15 Influence Decreases 80 | . 10 70 Entered New Map 25 | . . 25 Time Decay 45 | . 10 35 Lost Part 10 | . . 10 Squads Dispatched 1 | . 1 . Investigation 1 | . 1 . Extermination . | . . . Reinforcement . | . . . Assault . | . . . Garrison . | . . . Intercept . | . . . Searches Triggered . | . . . Construction Impeded . | . . . Haulers Reinforced . | . . . Active Scanning Responses . | . . . Cargo Convoy Interrupts . | . . . Stealth | -11 -10 -10 --------- Run | Yrd Mat Min Distress Signals 1 | . 1 . Communications Jammed . | . . . Distress Signals . | . . . Times Spotted 21 | . 6 15 Peak Tracking Total 6 | . 4 6 Tactical Retreats 1 | . . 1 Traps | -11 -10 -10 ------- Run | Yrd Mat Min Traps Triggered . | . . . Indirectly . | . . . Trap Hack Attempts . | . . . Triggered . | . . . Disarmed . | . . . Reprogrammed . | . . . Reused . | . . . Traps Extracted . | . . . Installed . | . . . Triggered . | . . . Machines | -11 -10 -10 ---------- Run | Yrd Mat Min Machines Disabled 1 | . . 1 Max in Single Turn 1 | . . 1 Machines Repaired . | . . . Machines Dismantled . | . . . Machines Sabotaged . | . . . Overloaded Fab Kills . | . . . Hacking | -11 -10 -10 --------- Run | Yrd Mat Min Machines Accessed 1 | . 1 . Terminals 1 | . 1 . Fabricators . | . . . Repair Stations . | . . . Recycling Units . | . . . Scanalyzers . | . . . Garrison Access . | . . . Total Hacks 2 | . 2 . Successful . | . . . Failed 2 | . 2 . Catastrophic 1 | . 1 . Database Lockouts . | . . . Manual . | . . . Terminals 2 | . 2 . Fabricators . | . . . Repair Stations . | . . . Recycling Units . | . . . Scanalyzers . | . . . Garrison Access . | . . . Terminal Hacks . | . . . Fabricator Hacks . | . . . Repair Station Hacks . | . . . Recycling Unit Hacks . | . . . Scanalyzer . | . . . Garrison Access Hacks . | . . . Unauthorized Hacks . | . . . Terminals . | . . . Fabricators . | . . . Repair Stations . | . . . Recycling Units . | . . . Scanalyzers . | . . . Garrison Access . | . . . Data Cores Recovered . | . . . Used . | . . . Hacking Detections 1 | . 1 . Full Trace Events 1 | . 1 . Feedback Events . | . . . Feedback Blocked . | . . . Robot Schematics Acquired . | . . . Robots Built . | . . . Authchips . | . . . Time . | . . . Total Robot Build Rating . | . . . Part Schematics Acquired . | . . . Parts Built . | . . . Authchips . | . . . Time . | . . . Total Part Build Rating . | . . . Parts Repaired . | . . . Time . | . . . Parts Recycled . | . . . Recycled Matter . | . . . Retrieved Matter . | . . . Retrieved Components . | . . . Parts Scanalyzed . | . . . Part Schematics Acquired . | . . . Parts Damaged . | . . . Bothacking | -11 -10 -10 ------------ Run | Yrd Mat Min Used RIF Installer . | . . . Robots Hacked . | . . . Non-combat . | . . . Combat . | . . . Robot Hacks Applied . | . . . Relay Couplers Released . | . . . Fabnet Peak Effective % . | . . . Robots Rewired . | . . . Allies Hacked . | . . . Hacks Repelled . | . . . Allies | -11 -10 -10 -------- Run | Yrd Mat Min Total Allies . | . . . Largest Group . | . . . Highest-Rated Group . | . . . Highest-Rated Ally . | . . . Total Orders . | . . . Ally Attacks . | . . . Total Damage . | . . . Kills . | . . . Allies Corrupted . | . . . Allies Melted . | . . . Intel | -11 -10 -10 ------- Run | Yrd Mat Min Active Infowar (turns) 2 | . . 2 Sensors 2 | . . 2 Robot Analysis Total . | . . . Derelict Logs Recovered 2 | . . 2 Drone Launches . | . . . Drone Recoveries . | . . . Exploration | -11 -10 -10 ------------- Run | Yrd Mat Min Turns Passed 561 | . 107 454 Spaces Moved 509 | 1 78 430 Core 71 | . . 71 Treads . | . . . Legs 310 | 1 78 231 Wheels 128 | . . 128 Hover . | . . . Flight . | . . . Fastest Speed 50 | 120 120 50 Average Speed 101 | 120 120 98 Slowest Speed 150 | 120 120 150 Overloaded Moves . | . . . Propulsion Burnouts . | . . . Robots Hopped . | . . . Potential Cave-ins . | . . . Cave-ins Triggered . | . . . Exploration Rate (%) 32 | 2 17 78 Regions Visited 2 Branch Regions 1 Pre-discovered Areas 2 | . . 2 Known Exits Taken . | . . . Unknown Exits Taken 2 | 1 1 . Scrap Searched 1 | . . 1 Spaces Dug . | . . . Terrain Destroyed . | . . . Melee . | . . . Projectile . | . . . AOE . | . . . Terrain Rammed . | . . . Walls Destroyed . | . . . Machines Disabled . | . . . Actions | -11 -10 -10 --------- Run | Yrd Mat Min Total 532 | . 83 449 Wait 1 | . . 1 Move 507 | . 77 430 Hop . | . . . Pick Up 2 | . 1 1 Fast Attach 1 | . 1 . Attach 2 | . . 2 Detach 1 | . . 1 Swap 5 | . . 5 Drop 2 | . . 2 Fire 11 | . 4 7 Melee . | . . . Ram . | . . . Kick . | . . . Crush . | . . . Escape Stasis . | . . . Rewire . | . . . Trap . | . . . Miscellaneous . | . . . Route ------- -11/Scrapyard -10/Materials -10/Mines (discovered 1 exit: [*Mat]) History --------- Turn | Location | Event 1 | -11/Scrapyard | Discovered new exit (range 0) 1 | -11/Scrapyard | Entered Materials 99 | -10/Materials | Discovered new exit (range 8) 108 | -10/Materials | Entered Mines 177 | -10/Mines | Met a Derelict bent on vengeance 181 | -10/Mines | Found a damaged Exp. Sensor Array with a note attached 183 | -10/Mines | Found Prototype Device 183 | -10/Mines | Identified Exp. Sensor Array 203 | -10/Mines | Discovered new exit (range 10) 262 | -10/Mines | Learned location of Zion (-7) 301 | -10/Mines | Build established: Mutant 320 | -10/Mines | Assembled infested the area 503 | -10/Mines | Core integrity fell below 50% 506 | -10/Mines | Lost 4 parts (1p1n1u1w) 553 | -10/Mines | Core integrity fell below 20% 562 | -10/Mines | Destroyed by D-53 Grenadier with Mini Grenade Launcher Last Messages --------------- 00445_ Acquired 7 matter. 00471_ Lgt. Armor Plating destroyed. 00475_ Com. Wheel destroyed. 00475_ Assault Rifle destroyed. 00475_ Ion Engine destroyed. 00514_ as-54126 destroyed. 00520_ Wheel destroyed. 00520_ System corrupted by crushing effect (+3). 00520_ Knocked back. 00535_ S-10 Pest destroyed. 00539_ System corrupted: Matter fused (-10). 00545_ as-53643 destroyed. 00545_ S-10 Pest destroyed. 00545_ Plasma Injector explodes. 00547_ as-26887 knocked back. 00549_ Lgt. Cannon destroyed. 00554_ as-26887 destroyed. 00558_ The unstable cave ceiling collapses. 00558_ as-07941 destroyed. 00560_ The unstable cave ceiling collapses. Map ----- +----------------------------------------------------+ | | | | | | | | | | | | | | | ??????###########??????????????? | | ???###""" "" ""##?????????????? | | ??## ##????????????? | | ??# ##???????????? | | ??# #???????????? | | ??# # #???????????? | | ?## # #???????????? | | ?# # #???????????? | | ?# # ## #???????????? | | ?# "# #?########### | | ?# d ## #?# | | ?# % ## #?# | | ?# ## ### ######## | | ?# ## #??????? | | ?# ###### #??????? | | ?# # ###????# #??????? | | ?## ####????????# ?????? | | ??#### ##??????????# ????? | | ?????# @##???????????## ???? | | ?????# a % ?????????? ??? | | ?????# ! #???????? ?? | | ?????#####= !%!!?????? | | ??????????* #%=#????? | | ???????????= #?*#????? | | ???????????? #???????? | | ????????????##????????### | | ?????????????????????????# ?? | | ??????????????????????????#????? | | ???????????????????????????????? | | ???????????????????????????????? | | ???????????????????????????????? | | ???????????????????????????????? | | ???????????????????????????????? | | ???????????????????????????????? | | ???????????????????????????????? | | ???????????????????????????????? | | ???????????????????????????????# | | ???????????????????????????????# | | ???????????????????????????????# | | ???????????????????????????????# | | ?????????????????????????????? | | ????????????????????????????? ?? | | ?????????????????????????????### | +----------------------------------------------------+ Best States ------------- Heat Dissipation 25 Energy Generation 10 Energy Capacity 250 Matter Stores 300 Matter Capacity 300 Sight Range 16 Terrain Scan Density 10 Armor Coverage 150 Evasion (%) 55 Item Schematics ----------------- None Robot Schematics ------------------ None Fabricated ------------ Nothing Repaired ---------- Nothing Alien Tech Used ----------------- None Achievements -------------- None Challenges ------------ None Game ------ Seed AccelerationSalvageRailgun Manual? 0 Play Time 00:07:57 Cumulative 1042.7 hours Start 2025.05.17 @ 10:52:01 End 2025.05.17 @ 10:56:56 Sessions 1 Manual Loads 0 Difficulty Rogue Special Mode None Game No. 1290 Rogue 1007 Adventurer 124 Explorer 159 Win Type - Total 46 Types 32/0/8/4/1/0/0/1/0/0 Lore% 91 Gallery% 85 Achievement% 80 Wizard Run 0 Options --------- Layout 0 ASCII 0 Keyboard 1 Movement Numpad Keybinds 0 Fullscreen 2 Font 18/X11 Map View 76x50 Zoom Use 0% Tactical HUD 1 Map Filters NONE Filters NONE Steam 1 RUN: b7ad9ca7-5852-4cf9-9e9b-e64520037a54